bitfinex/quotes_SOLUSD_20230702
["timestamp","ask_amount","ask_price","bid_price","bid_amount"]
[1688294014780,21.905,19.31,19.298,159.391]
[1688294014781,21.905,19.31,19.302,21.913]
[1688294015567,21.905,19.31,19.293,10.83719922]
[1688294015768,55.0,19.309,19.294,20.0]
[1688294015974,181.251,19.305,19.294,20.0]
[1688294016472,181.251,19.305,19.294,41.923]
[1688294016786,21.911,19.305,19.294,41.923]
[1688294017376,21.911,19.305,19.298,21.919]
[1688294018494,21.911,19.305,19.299,55.0]
[1688294018676,21.911,19.305,19.3,21.916]
[1688294021792,21.911,19.305,19.299,21.917]
[1688294022287,21.911,19.305,19.298,21.918]
[1688294022594,21.911,19.305,19.297,21.919]
[1688294022791,21.911,19.305,19.294,20.0]
[1688294022792,21.911,19.305,19.298,21.919]
[1688294024094,21.911,19.305,19.297,21.919]
[1688294029898,78.321,19.305,19.295,21.921]
[1688294030090,78.321,19.305,19.296,55.0]
[1688294030284,21.911,19.305,19.298,21.918]
[1688294037005,21.911,19.306,19.299,55.0]
[1688294037187,21.911,19.306,19.301,21.915]
[1688294039691,21.911,19.306,19.3,21.916]
[1688294040203,21.911,19.306,19.294,76.441]
[1688294040405,21.911,19.306,19.297,21.919]
[1688294048028,21.911,19.306,19.298,55.0]
[1688294048214,21.911,19.306,19.3,21.916]
[1688294049436,21.911,19.306,19.299,21.917]
[1688294052229,21.911,19.306,19.298,21.918]
[1688294055631,21.911,19.306,19.297,21.92]
[1688294055930,21.911,19.306,19.294,20.0]
[1688294056138,21.911,19.306,19.296,21.92]
[1688294059325,21.911,19.306,19.297,55.0]
[1688294059532,21.911,19.306,19.299,21.917]
[1688294060238,21.911,19.306,19.294,20.0]
[1688294060426,55.0,19.305,19.294,20.0]
[1688294060623,55.0,19.305,19.291,21.926]
[1688294060624,78.334,19.302,19.291,21.926]
[1688294060823,78.334,19.302,19.292,20.0]
[1688294061236,78.334,19.302,19.291,21.926]
[1688294061542,55.0,19.301,19.291,21.926]
[1688294061749,21.919,19.298,19.291,21.926]
[1688294067840,21.919,19.298,19.292,55.0]
[1688294068044,21.919,19.298,19.293,21.924]
[1688294068537,21.919,19.298,19.289,56.454]
[1688294068728,21.919,19.298,19.287,56.461]
[1688294068930,21.919,19.298,19.288,55.0]
[1688294069927,21.919,19.298,19.291,21.926]
[1688294070427,21.919,19.298,19.29,21.927]
[1688294071033,21.915,19.302,19.295,21.922]
[1688294071238,96.83182986,19.314,19.295,21.922]
[1688294071239,21.913,19.304,19.295,21.922]
[1688294071447,21.913,19.304,19.298,21.918]
[1688294074742,98.9796,19.308,19.215,54.30941295]
[1688294074743,24.91792183,19.245,19.215,54.30941295]
[1688294074947,24.91792183,19.245,19.215,22.013]
[1688294074948,21.918,19.244,19.215,22.013]
[1688294075128,2.99992183,19.235,19.203,396.8]
[1688294075330,21.67439845,19.26,19.215,83.2393]
[1688294075627,2.99992183,19.256,19.228,21.998]
[1688294075825,21.674398,19.26,19.228,21.998]
[1688294076023,2.99992183,19.256,19.228,21.998]
[1688294076232,58.60769,19.259,19.228,21.998]
[1688294076436,13.14829386,19.256,19.228,21.998]
[1688294076624,75.0,19.255,19.228,21.998]
[1688294076828,20.0,19.255,19.228,80.60569]
[1688294077026,55.0,19.254,19.228,80.60569]
[1688294077428,20.0,19.253,19.228,80.60569]
[1688294077637,55.0,19.252,19.228,80.60569]
[1688294078251,55.0,19.252,19.229,20.0]
[1688294078542,55.0,19.252,19.228,80.60569]
[1688294078543,55.0,19.252,19.228,58.60769]
[1688294078729,20.0,19.251,19.232,21.994]
[1688294078934,55.0,19.25,19.228,58.60769]
[1688294079128,20.0,19.249,19.228,58.60769]
[1688294079329,55.0,19.248,19.228,58.60769]
[1688294079727,20.0,19.247,19.228,58.60769]
[1688294079934,20.0,19.247,19.227,96.0489]
[1688294079935,55.0,19.246,19.229,21.997]
[1688294080147,20.0,19.245,19.229,21.997]
[1688294080541,20.0,19.245,19.228,21.998]
[1688294080747,55.0,19.251,19.227,96.0489]
[1688294080944,75.0,19.25,19.228,21.998]
[1688294081143,2.99992183,19.247,19.223,22.004]
[1688294081449,10.14837203,19.246,19.222,22.005]
[1688294081647,75.0,19.245,19.222,22.005]
[1688294081846,20.0,19.245,19.222,22.005]
[1688294082358,2.99992183,19.247,19.222,22.005]
[1688294082736,20.0,19.25,19.222,22.005]
[1688294082938,2.99992183,19.247,19.222,22.005]
[1688294083529,20.0,19.25,19.222,22.005]
[1688294083947,20.0,19.25,19.223,55.0]
[1688294084141,20.0,19.25,19.223,22.004]
[1688294084451,2.99992183,19.247,19.223,22.004]
[1688294085448,2.99992183,19.247,19.216,94.6863]
[1688294086447,2.99992183,19.247,19.216,116.6983]
[1688294087232,20.0,19.25,19.216,116.6983]
[1688294087430,55.0,19.249,19.216,116.6983]
[1688294087637,20.0,19.248,19.216,116.6983]
[1688294087953,55.0,19.247,19.22,22.007]
[1688294088140,20.0,19.246,19.221,55.0]
[1688294088343,55.0,19.245,19.221,55.0]
[1688294088646,20.0,19.244,19.221,55.0]
[1688294088830,55.0,19.243,19.221,55.0]
[1688294089034,20.0,19.242,19.221,55.0]
[1688294089239,55.0,19.241,19.216,94.6863]
[1688294089446,20.0,19.24,19.22,22.008]
[1688294089651,55.0,19.239,19.221,55.0]
[1688294089850,55.0,19.239,19.216,94.6863]
[1688294089851,20.0,19.238,19.216,94.6863]
[1688294090053,55.0,19.237,19.219,22.008]
[1688294090255,20.0,19.236,19.219,22.008]
[1688294090552,55.0,19.235,19.201,56.715]
[1688294090749,30.14837203,19.236,19.212,22.017]
[1688294090750,85.14837203,19.236,19.212,22.017]
[1688294090959,65.14837203,19.235,19.212,22.017]
[1688294091152,65.14837203,19.235,19.199,103.49]
[1688294091153,20.0,19.234,19.199,103.49]
[1688294091341,20.0,19.234,19.181,396.8]
[1688294091342,2.99992183,19.229,19.204,22.026]
[1688294091542,2.99992183,19.229,19.202,116.0591]
[1688294091855,10.14837203,19.228,19.202,22.028]
[1688294092060,75.0,19.227,19.202,22.028]
[1688294092352,85.14837203,19.227,19.203,116.0581]
[1688294093054,10.14837203,19.226,19.203,94.0311]
[1688294093254,75.0,19.225,19.191,56.742]
[1688294093452,75.0,19.225,19.201,22.029]
[1688294093751,75.0,19.225,19.196,96.7519]
[1688294093752,10.14837203,19.224,19.196,96.7519]
[1688294094063,75.0,19.223,19.196,96.7519]
[1688294094555,10.14837203,19.222,19.197,22.034]
[1688294094854,75.0,19.221,19.197,22.034]
[1688294095651,75.0,19.221,19.197,22.033]
[1688294095844,85.14837203,19.221,19.198,55.0]
[1688294096055,10.14837203,19.22,19.2,22.03]
[1688294096358,20.0,19.219,19.201,55.0]
[1688294096659,20.0,19.219,19.201,77.029]
[1688294097044,20.0,19.224,19.201,77.029]
[1688294097244,55.0,19.223,19.201,77.029]
[1688294097562,20.0,19.222,19.201,77.029]
[1688294097752,20.0,19.222,19.196,96.7519]
[1688294097956,55.0,19.221,19.196,96.7519]
[1688294098155,20.0,19.22,19.196,96.7519]
[1688294098345,55.0,19.219,19.196,96.7519]
[1688294098658,20.0,19.218,19.194,22.037]
[1688294099049,55.0,19.217,19.193,22.038]
[1688294099256,20.0,19.216,19.19,91.2876]
[1688294099556,55.0,19.215,19.19,91.2876]
[1688294099762,20.0,19.214,19.19,91.2876]
[1688294099947,55.0,19.213,19.19,91.2876]
[1688294100145,20.0,19.212,19.19,91.2876]
[1688294100349,55.0,19.211,19.19,91.2876]
[1688294100642,20.0,19.21,19.182,56.77]
[1688294100848,20.0,19.21,19.179,103.6]
[1688294100849,55.0,19.209,19.183,98.3891]
[1688294101062,20.0,19.208,19.183,98.3891]
[1688294101360,55.0,19.207,19.183,98.3891]
[1688294101564,20.0,19.206,19.183,98.3891]
[1688294101759,20.0,19.206,19.183,120.4391]
[1688294101958,55.0,19.205,19.183,98.3891]
[1688294102349,20.0,19.204,19.183,98.3891]
[1688294102659,55.0,19.212,19.183,98.3891]
[1688294102955,75.0,19.211,19.183,120.4381]
[1688294103550,20.0,19.211,19.183,120.4381]
[1688294104152,20.0,19.211,19.183,177.2071]
[1688294104554,20.0,19.211,19.184,55.0]
[1688294104742,20.0,19.211,19.186,22.046]
[1688294105059,20.0,19.211,19.184,22.048]
[1688294105645,20.0,19.211,19.183,98.3891]
[1688294105961,10.14837203,19.21,19.184,78.815]
[1688294106159,20.0,19.209,19.184,78.815]
[1688294106570,10.14837203,19.208,19.184,78.815]
[1688294106858,20.0,19.207,19.184,22.049]
[1688294107056,20.0,19.207,19.186,22.046]
[1688294107252,10.14837203,19.206,19.185,22.047]
[1688294107459,20.0,19.205,19.183,98.3891]
[1688294107860,65.14837203,19.204,19.183,98.3891]
[1688294108049,65.14837203,19.204,19.183,22.049]
[1688294108251,10.14837203,19.204,19.183,22.049]
[1688294108456,10.14837203,19.204,19.179,56.78]
[1688294108762,10.14837203,19.204,19.182,22.051]
[1688294108960,55.0,19.203,19.182,22.051]
[1688294109343,30.14837203,19.202,19.178,90.7413]
[1688294109550,55.0,19.201,19.178,90.7413]
[1688294109756,20.0,19.2,19.181,22.052]
[1688294109965,10.14837203,19.201,19.181,22.052]
[1688294110155,25.46952607,19.207,19.181,22.052]
[1688294110359,75.0,19.206,19.181,22.052]
[1688294110747,20.0,19.206,19.181,22.052]
[1688294110961,66.92537203,19.206,19.182,55.0]
[1688294111159,30.14837203,19.205,19.178,90.7413]
[1688294111358,30.14837203,19.205,19.181,22.052]
[1688294111856,56.777,19.206,19.182,20.0]
[1688294112059,56.777,19.206,19.189,22.043]
[1688294112962,56.777,19.206,19.192,22.039]
[1688294113167,56.777,19.206,19.19,22.042]
[1688294113463,10.14837203,19.205,19.19,22.042]
[1688294113967,10.14837203,19.205,19.189,22.043]
[1688294114163,10.14837203,19.205,19.178,90.7413]
[1688294114466,10.14837203,19.205,19.188,22.043]
[1688294114762,10.14837203,19.205,19.189,91.7818]
[1688294115062,10.14837203,19.205,19.19,55.0]
[1688294115661,75.0,19.204,19.174,103.628]
[1688294115855,75.0,19.204,19.18,91.7818]
[1688294116051,75.0,19.204,19.182,22.051]
[1688294116849,20.0,19.204,19.182,182.408]
[1688294117165,20.0,19.205,19.182,182.408]
[1688294117951,20.0,19.205,19.189,22.043]
[1688294118148,56.777,19.206,19.189,22.043]
[1688294118347,56.777,19.206,19.188,56.753]
[1688294119165,56.777,19.206,19.191,22.041]
[1688294119865,56.777,19.206,19.191,125.579]
[1688294120068,32.99992183,19.232,19.192,55.0]
[1688294120267,26.10521197,19.224,19.204,22.026]
[1688294120461,62.87257285,19.23,19.205,151.0891]
[1688294120961,125.74514585,19.23,19.205,96.0891]
[1688294121167,20.0,19.229,19.205,96.0891]
[1688294121368,62.87257285,19.229,19.205,96.0891]
[1688294121681,62.87257285,19.229,19.205,118.1141]
[1688294121972,62.872573,19.23,19.207,22.023]
[1688294122869,20.0,19.229,19.207,22.023]
[1688294125574,20.0,19.229,19.208,55.0]
[1688294125870,45.90154934,19.229,19.21,22.019]
[1688294126178,20.0,19.229,19.21,22.019]
[1688294126976,20.0,19.229,19.209,22.02]
[1688294127974,20.0,19.229,19.205,96.0891]
[1688294128167,31.93659,19.229,19.205,96.0891]
[1688294128968,46.27746869,19.229,19.205,96.0891]
[1688294129167,46.27746869,19.229,19.205,118.1141]
[1688294129680,46.27746869,19.229,19.205,221.5761]
[1688294130068,46.27746869,19.229,19.206,55.0]
[1688294131286,10.14837203,19.228,19.208,22.021]
[1688294131578,20.0,19.227,19.208,22.021]
[1688294131980,10.14837203,19.226,19.208,22.021]
[1688294132176,20.0,19.227,19.208,22.021]
[1688294132177,20.0,19.225,19.208,22.021]
[1688294132386,20.0,19.227,19.21,22.019]
[1688294132570,20.0,19.227,19.206,55.0]
[1688294132765,26.27746869,19.229,19.206,55.0]
[1688294132766,10.14837203,19.226,19.208,22.021]
[1688294132965,20.0,19.225,19.206,55.0]
[1688294133165,20.0,19.228,19.208,22.02]
[1688294133561,10.14837203,19.227,19.208,22.02]
[1688294133784,62.872573,19.23,19.206,55.0]
[1688294133785,20.0,19.226,19.211,22.017]
[1688294134166,62.872573,19.23,19.211,22.017]
[1688294134580,10.14837203,19.229,19.21,22.018]
[1688294134883,10.14837203,19.229,19.205,96.0891]
[1688294135073,55.0,19.228,19.205,96.0891]
[1688294135383,10.14837203,19.227,19.206,22.023]
[1688294135584,55.0,19.226,19.206,22.023]
[1688294135887,20.0,19.225,19.206,22.023]
[1688294136079,55.0,19.224,19.206,22.023]
[1688294137880,20.0,19.225,19.206,22.023]
[1688294138086,20.0,19.226,19.206,22.023]
[1688294138385,20.0,19.226,19.207,55.0]
[1688294138589,20.0,19.226,19.212,22.016]
[1688294139074,20.0,19.226,19.212,22.017]
[1688294139586,82.88923763,19.226,19.212,22.017]
[1688294140085,10.14837203,19.227,19.212,22.017]
[1688294140387,20.0,19.226,19.217,22.01]
[1688294140592,20.0,19.229,19.217,22.01]
[1688294142471,62.872573,19.23,19.218,55.0]
[1688294142773,26.41009293,19.253,19.221,78.661]
[1688294142973,20.0,19.252,19.227,21.999]
[1688294143189,55.0,19.236,19.227,21.999]
[1688294143366,104.68766124,19.251,19.227,21.999]
[1688294143572,104.68766124,19.251,19.219,91.818]
[1688294143573,44.56428769,19.251,19.234,21.991]
[1688294143974,44.56428769,19.251,19.23,56.628]
[1688294144283,89.12857469,19.251,19.234,21.992]
[1688294144494,89.12857469,19.251,19.235,55.0]
[1688294144682,89.12857469,19.251,19.237,21.988]
[1688294144887,20.0,19.25,19.231,148.444]
[1688294145088,20.0,19.25,19.232,55.0]
[1688294145391,20.0,19.25,19.235,21.99]
[1688294147577,26.41009293,19.267,19.24,21.984]
[1688294147784,49.97500152,19.263,19.24,21.984]
[1688294147989,64.56428769,19.262,19.24,21.984]
[1688294148179,74.71265972,19.262,19.24,21.984]
[1688294149182,74.71265972,19.262,19.24,78.584]
[1688294149684,74.71265972,19.262,19.245,21.979]
[1688294150279,74.71265972,19.262,19.244,21.979]
[1688294150480,74.71265972,19.262,19.241,97.8816]
[1688294150981,55.0,19.261,19.241,97.8816]
[1688294151188,20.0,19.26,19.241,97.8816]
[1688294151380,55.0,19.259,19.241,97.8816]
[1688294151695,20.0,19.258,19.245,21.979]
[1688294151878,20.0,19.26,19.245,21.979]
[1688294152493,20.0,19.261,19.245,21.979]
[1688294155005,20.0,19.261,19.245,78.565]
[1688294155298,20.0,19.261,19.241,97.8816]
[1688294155299,55.0,19.267,19.25,181.758]
[1688294155793,55.0,19.267,19.25,78.542]
[1688294155991,55.0,19.267,19.25,21.973]
[1688294156191,55.0,19.267,19.251,92.6674]
[1688294156380,20.0,19.266,19.251,114.6394]
[1688294158382,55.0,19.265,19.251,114.6394]
[1688294158896,20.0,19.266,19.251,114.6394]
[1688294159083,65.14837203,19.265,19.248,21.975]
[1688294159399,20.0,19.264,19.247,21.976]
[1688294159581,99.56428769,19.263,19.247,21.976]
[1688294159785,20.0,19.262,19.247,21.976]
[1688294159977,55.0,19.261,19.247,21.976]
[1688294160183,20.0,19.26,19.247,21.976]
[1688294160500,55.0,19.259,19.247,21.976]
[1688294160711,20.0,19.258,19.247,21.976]
[1688294161599,20.0,19.258,19.246,21.977]
[1688294161804,20.0,19.258,19.243,56.59]
[1688294161993,20.0,19.258,19.246,21.977]
[1688294162201,55.0,19.257,19.241,21.984]
[1688294162493,69.97500152,19.256,19.24,21.984]
[1688294162703,99.56428769,19.255,19.24,21.984]
[1688294162878,20.0,19.254,19.24,21.985]
[1688294163082,55.0,19.253,19.235,56.613]
[1688294163284,20.0,19.252,19.235,56.613]
[1688294163699,55.0,19.251,19.235,56.613]
[1688294164000,20.0,19.25,19.24,21.984]
[1688294164403,20.0,19.253,19.24,21.984]
[1688294164608,55.0,19.252,19.239,21.985]
[1688294164784,20.0,19.251,19.239,21.985]
[1688294165385,20.0,19.251,19.237,21.988]
[1688294165600,55.0,19.25,19.237,21.988]
[1688294165801,20.0,19.249,19.237,21.988]
[1688294166895,20.0,19.253,19.237,21.988]
[1688294167101,55.0,19.252,19.237,21.988]
[1688294167300,20.0,19.251,19.237,21.988]
[1688294167802,20.0,19.251,19.237,78.597]
[1688294167990,20.0,19.251,19.237,21.988]
[1688294168488,20.0,19.253,19.237,21.988]
[1688294169802,20.0,19.253,19.241,21.983]
[1688294170582,20.0,19.253,19.236,56.612]
[1688294170787,55.0,19.252,19.234,91.1638]
[1688294171109,20.0,19.251,19.232,56.621]
[1688294171492,20.0,19.251,19.229,103.332]
[1688294171493,20.0,19.251,19.234,21.991]
[1688294171694,20.0,19.251,19.234,125.297]
[1688294172001,20.0,19.252,19.235,55.0]
[1688294172206,20.0,19.252,19.24,21.985]
[1688294173001,56.613,19.254,19.241,55.0]
[1688294173309,56.613,19.254,19.244,21.979]
[1688294173887,44.56428769,19.258,19.244,21.979]
[1688294174497,44.56428769,19.258,19.248,21.975]
[1688294175208,89.12857569,19.258,19.248,21.975]
[1688294175403,20.0,19.257,19.248,21.975]
[1688294176492,20.0,19.257,19.247,21.976]
[1688294178514,20.0,19.257,19.246,21.977]
[1688294181410,20.0,19.257,19.244,93.403]
[1688294181716,20.0,19.257,19.246,21.978]
[1688294182300,20.0,19.257,19.244,115.382]
[1688294182505,20.0,19.257,19.244,93.403]
[1688294182901,65.14837203,19.256,19.234,56.617]
[1688294183110,20.0,19.255,19.237,21.988]
[1688294183416,65.14837203,19.254,19.237,21.988]
[1688294184403,10.14837203,19.254,19.237,21.988]
[1688294184719,10.14837203,19.254,19.238,55.0]
[1688294185018,10.14837203,19.254,19.242,21.982]
[1688294188128,64.56428769,19.255,19.242,21.982]
[1688294188420,20.0,19.254,19.243,55.0]
[1688294188618,20.0,19.257,19.246,21.978]
[1688294189322,20.0,19.257,19.245,21.979]
[1688294190021,55.0,19.256,19.245,21.979]
[1688294190243,20.0,19.255,19.245,21.979]
[1688294191325,44.564288,19.258,19.245,21.979]
[1688294191326,20.0,19.257,19.245,21.979]
[1688294191519,55.0,19.256,19.245,21.979]
[1688294191704,20.0,19.255,19.245,21.979]
[1688294194822,20.0,19.255,19.245,78.565]
[1688294195027,20.0,19.255,19.245,21.979]
[1688294195631,20.0,19.257,19.245,21.979]
[1688294195820,25.50417611,19.256,19.245,21.979]
[1688294196131,20.0,19.255,19.245,21.979]
[1688294196314,20.0,19.257,19.245,21.979]
[1688294197325,64.56428769,19.257,19.245,21.979]
[1688294197519,55.0,19.256,19.245,21.979]
[1688294197719,20.0,19.255,19.245,21.979]
[1688294199919,20.0,19.255,19.245,78.565]
[1688294200315,44.56428769,19.254,19.238,21.986]
[1688294200618,99.56428769,19.254,19.239,21.986]
[1688294200916,78.545,19.25,19.239,21.986]
[1688294201118,21.978,19.246,19.239,21.986]
[1688294201519,20.0,19.245,19.239,21.986]
[1688294201720,21.981,19.244,19.234,90.3278]
[1688294202021,78.57,19.244,19.236,21.989]
[1688294202334,100.551,19.244,19.236,21.989]
[1688294203333,100.551,19.244,19.235,21.99]
[1688294203536,100.551,19.244,19.23,56.629]
[1688294203720,100.551,19.244,19.234,21.991]
[1688294205036,100.551,19.244,19.228,95.7877]
[1688294205244,55.0,19.243,19.228,95.7877]
[1688294205537,78.592,19.239,19.228,95.7877]
[1688294206033,78.592,19.239,19.228,117.7857]
[1688294206034,21.991,19.235,19.228,117.7857]
[1688294206218,21.991,19.235,19.228,95.7877]
[1688294206421,21.994,19.233,19.228,95.7877]
[1688294206643,21.994,19.233,19.221,56.656]
[1688294206844,21.994,19.233,19.226,22.0]
[1688294207437,21.994,19.233,19.222,93.0769]
[1688294207640,21.994,19.233,19.22,56.659]
[1688294207849,21.994,19.233,19.221,93.0769]
[1688294208540,21.994,19.233,19.224,22.003]
[1688294209544,21.994,19.233,19.221,93.0769]
[1688294209843,21.994,19.233,19.222,55.0]
[1688294210032,21.994,19.233,19.223,22.004]
[1688294214123,21.994,19.233,19.224,55.0]
[1688294214319,21.994,19.233,19.226,22.0]
[1688294214540,21.993,19.233,19.227,55.0]
[1688294214733,26.05466837,19.243,19.227,55.0]
[1688294214734,21.992,19.235,19.228,21.998]
[1688294214941,56.595,19.242,19.229,55.0]
[1688294215142,21.988,19.238,19.232,21.993]
[1688294215348,21.987,19.238,19.232,78.617]
[1688294215725,21.987,19.238,19.232,21.993]
[1688294216122,21.987,19.238,19.231,21.994]
[1688294216443,21.987,19.238,19.23,91.433]
[1688294217545,21.987,19.238,19.23,113.429]
[1688294224148,21.987,19.238,19.233,21.993]
[1688294225150,21.985,19.24,19.233,21.993]
[1688294225442,21.985,19.24,19.235,21.99]
[1688294227735,21.985,19.24,19.231,56.624]
[1688294227942,21.985,19.24,19.234,21.991]
[1688294228936,21.985,19.24,19.233,21.992]
[1688294229137,21.985,19.24,19.23,91.433]
[1688294229740,21.985,19.24,19.232,21.993]
[1688294232442,21.985,19.24,19.234,21.991]
[1688294233940,21.985,19.24,19.233,21.993]
[1688294234348,21.985,19.24,19.232,21.994]
[1688294235453,21.985,19.24,19.23,91.433]
[1688294236734,21.985,19.24,19.23,113.429]
[1688294239134,21.985,19.24,19.23,91.433]
[1688294241847,21.985,19.24,19.23,113.429]
[1688294242860,21.985,19.24,19.23,91.433]
[1688294243758,21.985,19.24,19.23,113.429]
[1688294243953,21.985,19.24,19.23,91.433]
[1688294244750,21.985,19.24,19.229,21.997]
[1688294247160,21.985,19.24,19.229,78.63]
[1688294248050,21.985,19.24,19.23,55.0]
[1688294248350,21.985,19.24,19.233,21.993]
[1688294249549,21.985,19.24,19.231,21.994]
[1688294250257,125.259,19.24,19.227,99.5396]
[1688294250556,125.259,19.24,19.228,55.0]
[1688294250772,125.259,19.24,19.23,21.996]
[1688294251158,21.985,19.24,19.23,21.996]
[1688294251458,21.985,19.24,19.231,55.0]
[1688294251764,21.985,19.24,19.233,21.992]
[1688294252056,21.985,19.24,19.232,21.993]
[1688294252559,21.985,19.24,19.228,56.633]
[1688294252767,21.985,19.24,19.229,55.0]
[1688294253463,21.985,19.24,19.231,21.994]
[1688294255163,125.259,19.24,19.229,55.0]
[1688294255361,125.259,19.24,19.228,55.0]
[1688294255866,125.259,19.24,19.227,55.0]
[1688294256855,125.259,19.24,19.231,21.995]
[1688294259571,125.259,19.24,19.227,55.0]
[1688294259869,125.259,19.24,19.229,21.996]
[1688294265470,21.985,19.24,19.229,21.996]
[1688294281363,21.985,19.24,19.23,55.0]
[1688294281584,21.983,19.242,19.233,21.993]
[1688294281888,21.983,19.242,19.237,21.987]
[1688294282195,21.983,19.242,19.236,21.989]
[1688294284284,21.983,19.242,19.232,92.115]
[1688294284285,21.983,19.242,19.235,21.99]
[1688294284487,21.983,19.242,19.236,76.989]
[1688294285391,21.983,19.242,19.236,55.0]
[1688294286083,21.983,19.242,19.236,76.989]
[1688294290574,21.983,19.242,19.232,92.115]
[1688294291079,21.983,19.242,19.233,55.0]
[1688294292079,21.983,19.242,19.233,76.993]
[1688294294201,56.58,19.247,19.233,144.45119922]
[1688294294381,21.983,19.243,19.233,144.45119922]
[1688294294584,26.55390307,19.256,19.233,133.614]
[1688294294896,21.975,19.249,19.233,133.614]
[1688294295988,21.975,19.249,19.233,78.614]
[1688294296576,21.975,19.249,19.233,21.993]
[1688294296779,69.88913459,19.248,19.232,92.115]
[1688294297091,181.829,19.244,19.232,92.115]
[1688294297275,181.829,19.244,19.232,21.994]
[1688294297773,238.462,19.244,19.232,21.994]
[1688294299085,181.829,19.244,19.232,21.994]
[1688294299775,238.462,19.244,19.232,21.994]
[1688294300093,238.462,19.244,19.228,56.633]
[1688294300297,238.462,19.244,19.229,55.0]
[1688294301794,238.462,19.244,19.232,21.993]
[1688294302591,238.462,19.244,19.231,21.994]
[1688294305687,21.981,19.244,19.231,21.994]
[1688294305990,21.981,19.244,19.235,78.605]
[1688294306195,21.981,19.244,19.238,21.987]
[1688294308592,21.981,19.244,19.237,21.988]
[1688294309599,26.41009293,19.261,19.238,55.0]
[1688294309792,26.410093,19.253,19.243,21.981]
[1688294310196,26.410093,19.253,19.242,21.982]
[1688294310698,26.410093,19.253,19.241,21.983]
[1688294312387,101.74044846,19.26,19.242,55.0]
[1688294312588,20.0,19.259,19.246,21.978]
[1688294312895,49.88913459,19.258,19.246,21.978]
[1688294313095,20.0,19.257,19.246,21.978]
[1688294313483,20.0,19.257,19.245,21.978]
[1688294315192,20.0,19.259,19.245,21.978]
[1688294315499,20.0,19.259,19.242,55.0]
[1688294316093,20.0,19.259,19.244,21.979]
[1688294316287,20.0,19.259,19.245,76.979]